[Event "XII Paracin Festival 2019"]
[Site "Paracin"]
[Date "2019.07.09"]
[Round "5.16"]
[White "Risteski, Emil"]
[Black "Ratkovic, Miloje"]
[Result "0-1"]
[ECO "B19"]
[WhiteElo "2150"]
[BlackElo "2416"]
[Annotator "NA"]
[PlyCount "110"]
[EventDate "2019.07.05"]
[EventType "swiss"]
[EventCountry "SRB"]
[SourceTitle "playchess.com"]
[Source "ChessBase"]
[SourceQuality "1"]
[TimeControl "5400+30"]

1. e4 {[%emt 0:01:45]} c6 {[%emt 0:00:00]} 2. d4 {[%emt 0:00:04]} d5 {[%emt 0:00:00]} 3. Nc3 {[%emt 0:00:04]} dxe4 {[%emt 0:00:00]} 4. Nxe4 {[%emt 0:00:14]} Bf5 {[%emt 0:00:06]} 5. Ng3 {[%emt 0:00:06]} Bg6 {[%emt 0:00:07]} 6. h4 {[%emt 0:00:04]} h6 {[%emt 0:00:06]} 7. Nf3 {[%emt 0:00:04]} Nd7 {[%emt 0:00:18]} 8. h5 {[%emt 0:00:07]} Bh7 {[%emt 0:00:05]} 9. Bd3 {[%emt 0:00:06]} Bxd3 {[%emt 0:00:08]} 10. Qxd3 {[%emt 0:00:03]} e6 {[%emt 0:00:14]} 11. Bd2 {[%emt 0:00:17]} Ngf6 {[%emt 0:00:10]} 12. O-O-O {[%emt 0:00:28]} Qc7 {[%emt 0:00:10]} 13. Kb1 {[%emt 0:01:44]} O-O-O {[%emt 0:01:31]} 14. Ne4 {[%emt 0:06:42]} Nc5 {[%emt 0:00:26]} 15. Nxc5 {[%emt 0:00:08]} Bxc5 {[%emt 0:00:05]} 16. c3 {[%emt 0:04:20]} Bd6 {[%emt 0:02:12]} 17. Qe2 {[%emt 0:03:26]} Rhe8 {[%emt 0:09:11]} 18. c4 {[%emt 0:06:18]} c5 {[%emt 0:00:38]} 19. Bc3 {[%emt 0:01:13]} cxd4 {[%emt 0:10:20]} 20. Nxd4 {[%emt 0:01:02]} a6 {[%emt 0:00:16]} 21. Nb3 {[%emt 0:06:41]} Qc6 {[%emt 0:08:17]} 22. f3 {[%emt 0:11:58]} e5 {[%emt 0:13:53]} 23. Nd2 {[%emt 0:03:08]} Bc5 {[%emt 0:07:01]} 24. Rh4 {[%emt 0:08:55]} Qd7 {[%emt 0:03:57]} 25. Kc2 {[%emt 0:06:09]} Bd4 {[%emt 0:07:46]} 26. Bxd4 {[%emt 0:05:10]} exd4 {[%emt 0:00:15]} 27. Ne4 {[%emt 0:00:20]} Nxe4 {[%emt 0:14:24]} 28. Rxe4 {[%emt 0:00:04]} Rxe4 {[%emt 0:00:46]} 29. fxe4 {[%emt 0:00:41]} Qe6 {[%emt 0:00:51]} 30. Qd3 {[%emt 0:01:56]} Kb8 {[%emt 0:03:01]} 31. Kb1 {[%emt 0:03:15]} Ka8 {[%emt 0:00:50]} 32. c5 {[%emt 0:04:42]} Qc6 {[%emt 0:02:33]} 33. Rc1 {[%emt 0:00:35]} Re8 {[%emt 0:01:52]} 34. Qxd4 {[%emt 0:00:13]} Qxe4+ {[%emt 0:00:09]} 35. Qxe4 {[%emt 0:00:01]} Rxe4 {[%emt 0:00:07]} 36. c6 {[%emt 0:03:08]} Kb8 {[%emt 0:00:57]} 37. cxb7 {[%emt 0:02:14]} Kxb7 {[%emt 0:01:19]} 38. Rd1 {[%emt 0:03:34]} Kc6 {[%emt 0:00:15]} 39. Rc1+ {[%emt 0:00:44]} Kb6 {[%emt 0:00:07]} 40. Rd1 {[%emt 0:00:13]} Rg4 {[%emt 0:00:41]} 41. Rd7 {[%emt 0:03:25]} f6 {[%emt 0:00:13]} 42. Kc2 {[%emt 0:01:24]} Rxg2+ {[%emt 0:02:27]} 43. Kc3 {[%emt 0:00:03]} Rg4 {[%emt 0:02:11]} 44. Rf7 {[%emt 0:03:10]} a5 {[%emt 0:01:59]} 45. a3 {[%emt 0:02:30]} a4 {[%emt 0:02:11]} 46. b4 {[%emt 0:02:23]} Rg3+ {[%emt 0:04:03]} 47. Kc4 {[%emt 0:00:04]} Rxa3 {[%emt 0:00:42]} 48. Rxg7 {[%emt 0:00:04]} Ra1 {[%emt 0:01:19]} 49. b5 {[%emt 0:04:05]} Rh1 {[%emt 0:00:37]} 50. Rg6 {[%emt 0:01:30]} Rh4+ {[%emt 0:00:08]} 51. Kc3 {[%emt 0:00:08]} Rxh5 {[%emt 0:00:52]} 52. Rxf6+ {[%emt 0:00:08]} Kxb5 {[%emt 0:00:05]} 53. Rf4 {[%emt 0:00:00]} Rh3+ {[%emt 0:01:59]} 54. Kb2 {[%emt 0:00:04]} a3+ {[%emt 0:01:41]} 55. Ka2 {[%emt 0:00:01]} h5 {[%emt 0:00:17]} 0-1

[Event "XII Paracin Festival 2019"]
[Site "Paracin"]
[Date "2019.07.09"]
[Round "5.17"]
[White "Kanov, Nikola"]
[Black "Gadimbayli, Abdulla"]
[Result "0-1"]
[ECO "B01"]
[WhiteElo "1908"]
[BlackElo "2414"]
[Annotator "NA"]
[PlyCount "88"]
[EventDate "2019.07.05"]
[EventType "swiss"]
[EventCountry "SRB"]
[SourceTitle "playchess.com"]
[Source "ChessBase"]
[SourceQuality "1"]
[TimeControl "5400+30"]

1. e4 {[%emt 0:00:00]} d5 {[%emt 0:09:18]} 2. exd5 {[%emt 0:00:00]} Qxd5 {[%emt 0:00:11]} 3. Nc3 {[%emt 0:00:00]} Qd6 {[%emt 0:00:06]} 4. d4 {[%emt 0:00:00]} Nf6 {[%emt 0:00:02]} 5. Bc4 {[%emt 0:00:20]} Bg4 {[%emt 0:00:06]} 6. f3 {[%emt 0:00:25]} Bf5 {[%emt 0:00:25]} 7. Nge2 {[%emt 0:00:08]} e6 {[%emt 0:00:22]} 8. Bf4 {[%emt 0:00:57]} Qb4 {[%emt 0:05:01]} 9. Bb3 {[%emt 0:01:02]} c6 {[%emt 0:02:12]} 10. O-O {[%emt 0:01:50]} Na6 {[%emt 0:03:36]} 11. Qe1 {[%emt 0:06:58]} Be7 {[%emt 0:04:12]} 12. a3 {[%emt 0:01:12]} Qb6 {[%emt 0:09:06]} 13. Na4 {[%emt 0:01:39]} Qd8 {[%emt 0:00:12]} 14. Rd1 {[%emt 0:00:12]} b5 {[%emt 0:13:52]} 15. Nac3 {[%emt 0:00:38]} O-O {[%emt 0:01:06]} 16. Ng3 {[%emt 0:02:03]} Bg6 {[%emt 0:02:41]} 17. Nce4 {[%emt 0:02:56]} Nd5 {[%emt 0:06:42]} 18. Be3 {[%emt 0:03:02]} f5 {[%emt 0:06:39]} 19. Nc3 f4 20. Bxd5 {[%emt 0:06:56]} exd5 {[%emt 0:03:20]} 21. Bxf4 {[%emt 0:00:22]} Rxf4 {[%emt 0:00:04]} 22. Qe6+ {[%emt 0:00:05]} Bf7 {[%emt 0:01:39]} 23. Qxc6 {[%emt 0:01:59]} Nc7 {[%emt 0:03:45]} 24. Nxb5 {[%emt 0:02:31]} Nxb5 {[%emt 0:00:48]} 25. Qxb5 {[%emt 0:00:02]} Rb8 {[%emt 0:00:07]} 26. Qd3 {[%emt 0:11:53]} Rxb2 {[%emt 0:07:25]} 27. Qc3 {[%emt 0:06:02]} Rb6 {[%emt 0:00:59]} 28. Rfe1 {[%emt 0:01:30]} Rff6 {[%emt 0:02:23]} 29. Re2 {[%emt 0:03:39]} Rfc6 {[%emt 0:03:01]} 30. Qe3 {[%emt 0:03:02]} Re6 {[%emt 0:00:15]} 31. Qc3 {[%emt 0:00:44]} Rbc6 {[%emt 0:01:30]} 32. Qb3 {[%emt 0:00:16]} Qb6 {[%emt 0:03:59]} 33. Rxe6 {[%emt 0:01:08]} Rxe6 {[%emt 0:01:46]} 34. Qc3 {[%emt 0:01:47]} Bf6 {[%emt 0:01:32]} 35. a4 {[%emt 0:00:42]} Rc6 {[%emt 0:01:58]} 36. Qe3 {[%emt 0:05:58]} Rxc2 {[%emt 0:00:47]} 37. Ne2 {[%emt 0:03:04]} Qb2 {[%emt 0:02:47]} 38. Kf1 {[%emt 0:00:38]} h6 {[%emt 0:01:19]} 39. a5 {[%emt 0:00:31]} Qa2 {[%emt 0:00:19]} 40. Qd3 {[%emt 0:00:55]} Qc4 {[%emt 0:00:37]} 41. Qe3 {[%emt 0:00:36]} Qb5 {[%emt 0:00:24]} 42. a6 {[%emt 0:00:33]} Qxa6 {[%emt 0:00:24]} 43. Rb1 {[%emt 0:00:17]} Bxd4 {[%emt 0:01:22]} 44. Qe7 {[%emt 0:01:09]} Bf6 {[%emt 0:00:44]} 0-1

[Event "XII Paracin Festival 2019"]
[Site "Paracin"]
[Date "2019.07.09"]
[Round "5.18"]
[White "Djordjevic, Vuk"]
[Black "Gan-Od, Sereenen"]
[Result "1/2-1/2"]
[ECO "A45"]
[WhiteElo "2412"]
[BlackElo "2294"]
[Annotator "NA"]
[PlyCount "74"]
[EventDate "2019.07.05"]
[EventType "swiss"]
[EventCountry "SRB"]
[SourceTitle "playchess.com"]
[Source "ChessBase"]
[SourceQuality "1"]
[TimeControl "5400+30"]

1. d4 {[%emt 0:00:00]} Nf6 {[%emt 0:00:00]} 2. Bg5 {[%emt 0:00:00]} d5 {[%emt 0:00:00]} 3. Bxf6 {[%emt 0:00:00]} exf6 {[%emt 0:00:00]} 4. e3 {[%emt 0:00:13]} f5 {[%emt 0:00:00]} 5. c4 {[%emt 0:00:11]} dxc4 {[%emt 0:00:01]} 6. Bxc4 {[%emt 0:00:07]} Bd6 {[%emt 0:00:01]} 7. Nc3 {[%emt 0:00:15]} O-O {[%emt 0:00:08]} 8. Nf3 {[%emt 0:00:08]} a6 {[%emt 0:00:06]} 9. O-O {[%emt 0:03:39]} Nd7 {[%emt 0:00:43]} 10. Be2 {[%emt 0:14:41]} Nf6 {[%emt 0:01:58]} 11. Ne5 {[%emt 0:05:49]} Qe7 {[%emt 0:02:26]} 12. Nc4 {[%emt 0:01:14]} Be6 {[%emt 0:04:33]} 13. Nxd6 {[%emt 0:03:22]} cxd6 {[%emt 0:01:11]} 14. Qd3 {[%emt 0:12:40]} Rac8 {[%emt 0:01:29]} 15. Rfc1 {[%emt 0:08:29]} g6 {[%emt 0:04:19]} 16. b3 {[%emt 0:09:43]} Rc7 {[%emt 0:01:42]} 17. Bf3 {[%emt 0:01:37]} Rfc8 {[%emt 0:01:02]} 18. Qd2 {[%emt 0:03:04]} b5 {[%emt 0:00:46]} 19. h3 {[%emt 0:03:07]} h5 {[%emt 0:08:36]} 20. Ne2 {[%emt 0:08:25]} Bd5 {[%emt 0:01:57]} 21. Bxd5 {[%emt 0:01:55]} Nxd5 {[%emt 0:01:30]} 22. Rxc7 {[%emt 0:00:01]} Rxc7 {[%emt 0:00:24]} 23. Rc1 {[%emt 0:00:08]} b4 {[%emt 0:00:40]} 24. Rc4 {[%emt 0:02:19]} a5 {[%emt 0:04:37]} 25. Qc2 {[%emt 0:02:40]} Rxc4 {[%emt 0:00:43]} 26. bxc4 {[%emt 0:02:07]} Qc7 {[%emt 0:00:16]} 27. Nf4 {[%emt 0:05:03]} Nxf4 {[%emt 0:06:20]} 28. exf4 {[%emt 0:00:03]} a4 {[%emt 0:00:23]} 29. Kh2 {[%emt 0:08:33]} d5 {[%emt 0:22:54]} 30. c5 {[%emt 0:00:05]} Qxf4+ {[%emt 0:00:09]} 31. Kg1 {[%emt 0:00:32]} Qxd4 {[%emt 0:00:27]} 32. c6 {[%emt 0:00:25]} Qa1+ {[%emt 0:02:41]} 33. Kh2 {[%emt 0:00:02]} Qe5+ {[%emt 0:00:05]} 34. g3 {[%emt 0:03:43]} Qc7 {[%emt 0:04:00]} 35. Qxa4 {[%emt 0:00:10]} h4 {[%emt 0:05:55]} 36. Qa8+ {[%emt 0:00:31]} Kg7 {[%emt 0:00:10]} 37. Qb7 {[%emt 0:01:36]} hxg3+ {[%emt 0:00:50]} 1/2-1/2

[Event "XII Paracin Festival 2019"]
[Site "Paracin"]
[Date "2019.07.09"]
[Round "5.19"]
[White "Perunovic, Milos"]
[Black "Peng, Shunkai"]
[Result "1-0"]
[ECO "B96"]
[WhiteElo "2597"]
[BlackElo "2300"]
[Annotator "ChessBase"]
[PlyCount "79"]
[EventDate "2019.07.05"]
[EventType "swiss"]
[EventCountry "SRB"]
[SourceTitle "playchess.com"]
[Source "ChessBase"]
[SourceQuality "1"]
[TimeControl "5400+30"]

1. e4 {[%emt 0:00:00]} c5 {[%emt 0:00:27]} 2. Nf3 {[%emt 0:00:02]} d6 {[%emt 0:01:03]} 3. d4 {[%emt 0:00:49]} cxd4 {[%emt 0:00:26]} 4. Nxd4 {[%emt 0:00:08]} Nf6 {[%emt 0:00:15]} 5. Nc3 {[%emt 0:00:20]} a6 {[%emt 0:01:00]} 6. Bg5 {[%emt 0:02:26]} e6 {[%emt 0:04:39]} 7. f4 {[%emt 0:00:26]} h6 {[%emt 0:02:06]} 8. Bh4 {[%emt 0:00:08]} Qb6 {[%emt 0:00:12]} 9. Qd2 {[%emt 0:04:00]} Nc6 {[%emt 0:05:24]} 10. Bxf6 {[%emt 0:01:23]} gxf6 {[%emt 0:00:10]} 11. Nb3 {[%emt 0:00:15]} Bd7 {[%emt 0:04:59]} 12. O-O-O {[%emt 0:01:54]} O-O-O {[%emt 0:01:53]} 13. Be2 {[%emt 0:04:11]} h5 {[%emt 0:04:44]} 14. Rhf1 {[%emt 0:00:55]} Kb8 {[%emt 0:03:27]} 15. Rf3 {[%emt 0:07:37]} h4 {[%emt 0:09:02]} 16. Kb1 {[%emt 0:04:12]} Be7 {[%emt 0:03:17]} 17. Bf1 {[%emt 0:01:29]} Rc8 {[%emt 0:10:45]} 18. Qe1 {[%emt 0:08:34]} Rh6 {[%emt 0:06:13]} 19. a3 {[%emt 0:11:14]} Qd8 {[%emt 0:12:23]} 20. Rfd3 {[%emt 0:04:58]} Qf8 {[%emt 0:11:48]} 21. Na4 {[%emt 0:03:53]} Qd8 {[%emt 0:05:26]} 22. Nbc5 {[%emt 0:03:08]} Rc7 {[%emt 0:01:54]} 23. Nb6 {[%emt 0:08:18]} Bc8 {[%emt 0:01:49]} 24. Rb3 {[%emt 0:01:35]} Qe8 {[%emt 0:01:53]} 25. Nca4 {[%emt 0:09:41]} Na7 {[%emt 0:01:31]} 26. Bxa6 {[%emt 0:00:40]} Rg6 {[%emt 0:01:42]} 27. Bf1 {[%emt 0:04:13]} Bd7 {[%emt 0:01:12]} 28. Nxd7+ {[%emt 0:01:03]} Qxd7 {[%emt 0:00:02]} 29. Rd4 {[%emt 0:01:25]} Nc8 {[%emt 0:02:13]} 30. Qa5 {[%emt 0:01:03]} Bd8 {[%emt 0:00:15]} 31. Nc5 {[%emt 0:01:03]} Rxc5 {[%emt 0:01:29]} 32. Qxc5 {[%emt 0:00:09]} e5 {[%emt 0:00:05]} 33. Rd2 {[%emt 0:01:12]} Bb6 {[%emt 0:00:50]} 34. Qc4 {[%emt 0:02:41]} exf4 {[%emt 0:00:09]} 35. Rd5 {[%emt 0:00:08]} Rg5 {[%emt 0:01:10]} 36. Rdb5 {[%emt 0:01:27]} Qc7 {[%emt 0:00:40]} 37. Qb4 {[%emt 0:02:11]} Rxb5 {[%emt 0:01:05]} 38. Qxb5 {[%emt 0:00:16]} Qc5 {[%emt 0:00:18]} 39. Qxc5 {[%emt 0:00:51]} Bxc5 {[%emt 0:00:07]} 40. Rf3 {[%emt 0:01:39]} 1-0

[Event "XII Paracin Festival 2019"]
[Site "Paracin"]
[Date "2019.07.09"]
[Round "5.20"]
[White "Svetushkin, Dmitry"]
[Black "Stefansson, Vignir Vatnar"]
[Result "1-0"]
[ECO "A80"]
[WhiteElo "2528"]
[BlackElo "2293"]
[Annotator "ChessBase"]
[PlyCount "57"]
[EventDate "2019.07.05"]
[EventType "swiss"]
[EventCountry "SRB"]
[SourceTitle "playchess.com"]
[Source "ChessBase"]
[SourceQuality "1"]
[TimeControl "5400+30"]

1. d4 {[%emt 0:01:41]} f5 {[%emt 0:00:00]} 2. Nc3 {[%emt 0:00:07]} Nf6 {[%emt 0:00:01]} 3. Bg5 {[%emt 0:00:07]} d5 {[%emt 0:00:05]} 4. Bxf6 {[%emt 0:00:08]} exf6 {[%emt 0:00:04]} 5. e3 {[%emt 0:00:08]} Be6 {[%emt 0:00:06]} 6. Bb5+ {[%emt 0:00:05]} c6 {[%emt 0:00:05]} 7. Bd3 {[%emt 0:00:08]} Qb6 {[%emt 0:00:03]} 8. Rb1 {[%emt 0:01:40]} Bb4 {[%emt 0:09:46]} 9. Nge2 {[%emt 0:00:58]} Bd6 {[%emt 0:00:14]} 10. Na4 {[%emt 0:11:01]} Qc7 {[%emt 0:08:02]} 11. b3 {[%emt 0:02:04]} Nd7 {[%emt 0:03:36]} 12. c4 {[%emt 0:00:39]} Qa5+ {[%emt 0:18:10]} 13. Nac3 {[%emt 0:04:30]} Bb4 {[%emt 0:03:11]} 14. Qc2 {[%emt 0:01:44]} b5 {[%emt 0:16:10]} 15. cxb5 {[%emt 0:13:40]} cxb5 {[%emt 0:00:09]} 16. a3 {[%emt 0:00:20]} Bxc3+ {[%emt 0:04:37]} 17. Qxc3 {[%emt 0:00:38]} Qxc3+ {[%emt 0:00:14]} 18. Nxc3 {[%emt 0:00:06]} a6 {[%emt 0:00:02]} 19. a4 {[%emt 0:08:04]} b4 {[%emt 0:00:20]} 20. Ne2 {[%emt 0:00:06]} g6 {[%emt 0:08:27]} 21. Kd2 {[%emt 0:02:24]} a5 {[%emt 0:03:51]} 22. Rbc1 {[%emt 0:02:32]} Ke7 {[%emt 0:00:18]} 23. Rc6 {[%emt 0:00:07]} Rhc8 {[%emt 0:00:05]} 24. Rhc1 {[%emt 0:00:07]} Rxc6 {[%emt 0:02:53]} 25. Rxc6 {[%emt 0:00:45]} Nb8 {[%emt 0:01:32]} 26. Rc7+ {[%emt 0:00:44]} Bd7 {[%emt 0:00:05]} 27. Nf4 {[%emt 0:02:34]} Kd6 {[%emt 0:00:07]} 28. Rb7 {[%emt 0:00:27]} Nc6 {[%emt 0:02:55]} 29. Bb5 {[%emt 0:04:19]} 1-0

[Event "XII Paracin Festival 2019"]
[Site "Paracin"]
[Date "2019.07.09"]
[Round "5.21"]
[White "Savic, Miodrag R"]
[Black "Pastar, Slaven"]
[Result "1-0"]
[ECO "C50"]
[WhiteElo "2503"]
[BlackElo "2276"]
[Annotator "ChessBase"]
[PlyCount "127"]
[EventDate "2019.07.05"]
[EventType "swiss"]
[EventCountry "SRB"]
[SourceTitle "playchess.com"]
[Source "ChessBase"]
[SourceQuality "1"]
[TimeControl "5400+30"]

1. e4 {[%emt 0:00:00]} e5 {[%emt 0:00:33]} 2. Nf3 {[%emt 0:00:00]} Nc6 {[%emt 0:00:01]} 3. Bc4 {[%emt 0:00:18]} Bc5 {[%emt 0:00:07]} 4. O-O {[%emt 0:00:34]} Nf6 {[%emt 0:00:05]} 5. d3 {[%emt 0:00:08]} O-O {[%emt 0:00:11]} 6. h3 {[%emt 0:03:57]} a6 {[%emt 0:04:27]} 7. Bb3 {[%emt 0:03:54]} d6 {[%emt 0:03:44]} 8. c3 {[%emt 0:02:23]} h6 {[%emt 0:00:31]} 9. Re1 {[%emt 0:00:34]} Re8 {[%emt 0:00:33]} 10. Nbd2 {[%emt 0:02:14]} Be6 {[%emt 0:05:35]} 11. Nf1 {[%emt 0:24:29]} Bxb3 {[%emt 0:01:45]} 12. Qxb3 {[%emt 0:00:50]} Qd7 {[%emt 0:01:08]} 13. Ng3 {[%emt 0:01:23]} Rad8 {[%emt 0:02:35]} 14. Nh4 {[%emt 0:15:00]} d5 {[%emt 0:06:28]} 15. Nhf5 {[%emt 0:00:02]} Bb6 {[%emt 0:06:08]} 16. Be3 {[%emt 0:03:15]} d4 {[%emt 0:05:29]} 17. cxd4 {[%emt 0:00:23]} Nxd4 {[%emt 0:00:49]} 18. Nxd4 {[%emt 0:01:25]} exd4 {[%emt 0:03:47]} 19. Bd2 {[%emt 0:00:25]} Qb5 {[%emt 0:02:38]} 20. Qc2 {[%emt 0:01:24]} Nd7 {[%emt 0:04:59]} 21. a4 {[%emt 0:02:35]} Qc5 {[%emt 0:02:38]} 22. Qb3 {[%emt 0:01:11]} a5 {[%emt 0:03:24]} 23. Rec1 {[%emt 0:01:09]} Qe5 {[%emt 0:05:16]} 24. Qc4 {[%emt 0:06:41]} Qe6 {[%emt 0:03:02]} 25. Bf4 {[%emt 0:00:18]} c6 {[%emt 0:11:40]} 26. Nf5 {[%emt 0:01:28]} Nc5 {[%emt 0:01:45]} 27. Ra3 {[%emt 0:00:19]} Qxc4 {[%emt 0:03:18]} 28. Rxc4 {[%emt 0:00:04]} Ne6 {[%emt 0:01:37]} 29. Bd2 {[%emt 0:03:01]} Bc5 {[%emt 0:06:29]} 30. Ra1 {[%emt 0:01:20]} b6 {[%emt 0:00:45]} 31. Rac1 {[%emt 0:03:12]} Ra8 {[%emt 0:01:49]} 32. f4 {[%emt 0:01:38]} Reb8 {[%emt 0:07:11]} 33. b3 {[%emt 0:00:58]} Kh7 {[%emt 0:01:43]} 34. R1c2 {[%emt 0:01:47]} Bb4 {[%emt 0:02:06]} 35. Bxb4 {[%emt 0:00:48]} axb4 {[%emt 0:00:01]} 36. Rxc6 {[%emt 0:04:30]} Nxf4 {[%emt 0:00:13]} 37. Rc7 {[%emt 0:00:52]} Rf8 {[%emt 0:02:11]} 38. R2c6 {[%emt 0:02:01]} Nxd3 {[%emt 0:00:58]} 39. Rxb6 {[%emt 0:00:14]} Rad8 {[%emt 0:01:03]} 40. a5 {[%emt 0:04:13]} Nb2 {[%emt 0:00:32]} 41. Rc2 {[%emt 0:00:16]} Nd1 {[%emt 0:00:05]} 42. Rxb4 {[%emt 0:00:33]} d3 {[%emt 0:00:37]} 43. Rd2 {[%emt 0:00:02]} Nc3 {[%emt 0:00:04]} 44. Rc4 {[%emt 0:01:10]} Nb1 {[%emt 0:00:59]} 45. Rd1 {[%emt 0:00:01]} g6 {[%emt 0:00:53]} 46. Ne3 {[%emt 0:01:56]} Na3 {[%emt 0:00:03]} 47. Rc3 {[%emt 0:00:15]} d2 {[%emt 0:00:23]} 48. Nd5 {[%emt 0:01:50]} Kg7 {[%emt 0:00:49]} 49. b4 {[%emt 0:00:42]} Nb5 {[%emt 0:00:02]} 50. Rd3 {[%emt 0:01:16]} Rfe8 {[%emt 0:00:19]} 51. R1xd2 {[%emt 0:01:50]} Rxe4 {[%emt 0:00:02]} 52. Kf2 {[%emt 0:00:28]} h5 {[%emt 0:00:56]} 53. Nc3 {[%emt 0:02:32]} Rf4+ {[%emt 0:00:35]} 54. Ke3 {[%emt 0:00:20]} Rxd3+ {[%emt 0:00:40]} 55. Rxd3 {[%emt 0:00:10]} Rxb4 {[%emt 0:00:09]} 56. Nxb5 {[%emt 0:00:07]} Rxb5 57. Ra3 {[%emt 0:00:05]} Rb8 {[%emt 0:01:24]} 58. a6 {[%emt 0:00:02]} g5 {[%emt 0:00:23]} 59. a7 {[%emt 0:00:07]} Ra8 {[%emt 0:00:01]} 60. Ke4 {[%emt 0:01:03]} Kg6 {[%emt 0:00:12]} 61. Ra6+ {[%emt 0:00:10]} f6 {[%emt 0:00:10]} 62. g3 {[%emt 0:00:29]} Re8+ {[%emt 0:00:38]} 63. Kd5 {[%emt 0:00:02]} Ra8 {[%emt 0:00:16]} 64. Ke4 1-0

[Event "XII Paracin Festival 2019"]
[Site "Paracin"]
[Date "2019.07.09"]
[Round "5.22"]
[White "Tadic, Stefan"]
[Black "Milanovic, Danilo"]
[Result "0-1"]
[ECO "B23"]
[WhiteElo "2262"]
[BlackElo "2492"]
[Annotator "ChessBase"]
[PlyCount "60"]
[EventDate "2019.07.05"]
[EventType "swiss"]
[EventCountry "SRB"]
[SourceTitle "playchess.com"]
[Source "ChessBase"]
[SourceQuality "1"]
[TimeControl "5400+30"]

1. e4 {[%emt 0:00:00]} c5 {[%emt 0:01:31]} 2. Nc3 {[%emt 0:00:31]} e6 {[%emt 0:00:04]} 3. Nf3 {[%emt 0:01:02]} a6 {[%emt 0:00:07]} 4. g3 {[%emt 0:02:48]} Nc6 {[%emt 0:06:07]} 5. Bg2 {[%emt 0:00:51]} Nge7 {[%emt 0:13:40]} 6. O-O {[%emt 0:03:13]} Nd4 {[%emt 0:03:05]} 7. Nxd4 {[%emt 0:04:55]} cxd4 {[%emt 0:00:10]} 8. Ne2 {[%emt 0:00:09]} Nc6 {[%emt 0:00:05]} 9. d3 {[%emt 0:20:11]} Bc5 {[%emt 0:11:07]} 10. f4 {[%emt 0:03:34]} O-O {[%emt 0:02:10]} 11. f5 {[%emt 0:04:00]} f6 {[%emt 0:09:26]} 12. g4 {[%emt 0:05:33]} Ne5 {[%emt 0:01:54]} 13. Nf4 {[%emt 0:06:48]} Qe7 {[%emt 0:01:57]} 14. h4 {[%emt 0:02:47]} b5 {[%emt 0:04:03]} 15. g5 {[%emt 0:11:31]} Bb7 {[%emt 0:04:32]} 16. Nh5 {[%emt 0:03:03]} fxg5 {[%emt 0:05:58]} 17. Bxg5 {[%emt 0:01:18]} Qf7 {[%emt 0:02:53]} 18. f6 {[%emt 0:11:19]} g6 {[%emt 0:00:26]} 19. Nf4 {[%emt 0:00:52]} Rfc8 {[%emt 0:04:14]} 20. Nh3 {[%emt 0:09:23]} Bf8 {[%emt 0:00:18]} 21. Bf4 {[%emt 0:01:20]} Qxf6 {[%emt 0:05:03]} 22. Ng5 {[%emt 0:04:40]} h6 {[%emt 0:06:33]} 23. Nh3 {[%emt 0:00:43]} Qg7 {[%emt 0:00:11]} 24. Bxe5 {[%emt 0:00:44]} Qxe5 {[%emt 0:00:05]} 25. Qg4 {[%emt 0:00:05]} Rxc2 {[%emt 0:06:52]} 26. Rf3 {[%emt 0:00:47]} Bd6 {[%emt 0:00:52]} 27. Nf4 {[%emt 0:00:23]} g5 {[%emt 0:00:14]} 28. Nh3 {[%emt 0:00:53]} Rxb2 {[%emt 0:04:21]} 29. hxg5 {[%emt 0:00:22]} Qh2+ {[%emt 0:00:08]} 30. Kf1 {[%emt 0:00:04]} h5 {[%emt 0:00:05]} 0-1

[Event "XII Paracin Festival 2019"]
[Site "Paracin"]
[Date "2019.07.09"]
[Round "5.23"]
[White "Vafin, Ayrat"]
[Black "Radovanovic, Nikola"]
[Result "1/2-1/2"]
[ECO "E62"]
[WhiteElo "2213"]
[BlackElo "2431"]
[Annotator "NA"]
[PlyCount "62"]
[EventDate "2019.07.05"]
[EventType "swiss"]
[EventCountry "SRB"]
[SourceTitle "playchess.com"]
[Source "ChessBase"]
[SourceQuality "1"]
[TimeControl "5400+30"]

1. d4 Nf6 {[%emt 0:01:02]} 2. Nf3 {[%emt 0:01:38]} g6 {[%emt 0:00:17]} 3. g3 {[%emt 0:00:19]} Bg7 {[%emt 0:00:24]} 4. Bg2 {[%emt 0:00:05]} O-O {[%emt 0:00:20]} 5. c4 {[%emt 0:00:23]} d6 {[%emt 0:04:20]} 6. Nc3 {[%emt 0:00:23]} c6 {[%emt 0:04:29]} 7. O-O {[%emt 0:00:23]} Bf5 {[%emt 0:00:06]} 8. Nh4 {[%emt 0:03:09]} Be6 {[%emt 0:00:48]} 9. d5 cxd5 {[%emt 0:00:30]} 10. cxd5 {[%emt 0:01:37]} Bd7 {[%emt 0:00:08]} 11. Be3 {[%emt 0:18:19]} Qa5 {[%emt 0:14:40]} 12. a3 {[%emt 0:02:25]} Rc8 {[%emt 0:01:07]} 13. Bd4 {[%emt 0:08:16]} Na6 {[%emt 0:06:59]} 14. b4 {[%emt 0:15:43]} Qd8 {[%emt 0:03:29]} 15. Qd3 {[%emt 0:00:18]} Ng4 {[%emt 0:03:44]} 16. Bxg7 {[%emt 0:00:10]} Kxg7 {[%emt 0:00:06]} 17. Nf3 {[%emt 0:00:10]} Qb6 {[%emt 0:05:25]} 18. Rac1 {[%emt 0:12:13]} Rc7 {[%emt 0:16:36]} 19. h3 {[%emt 0:00:04]} Ne5 {[%emt 0:03:14]} 20. Nxe5 {[%emt 0:00:23]} dxe5 {[%emt 0:00:05]} 21. Na2 {[%emt 0:08:49]} Rac8 {[%emt 0:04:33]} 22. Rxc7 {[%emt 0:00:51]} Nxc7 {[%emt 0:00:50]} 23. Rc1 {[%emt 0:08:52]} Nb5 {[%emt 0:06:08]} 24. Rxc8 {[%emt 0:00:01]} Bxc8 {[%emt 0:00:10]} 25. a4 {[%emt 0:00:41]} Nd6 {[%emt 0:01:03]} 26. Qc3 {[%emt 0:00:26]} Qd4 {[%emt 0:03:18]} 27. e3 {[%emt 0:01:48]} Qxc3 {[%emt 0:05:42]} 28. Nxc3 {[%emt 0:00:01]} f5 {[%emt 0:00:10]} 29. f3 {[%emt 0:01:32]} Kf6 {[%emt 0:02:53]} 30. Kf2 {[%emt 0:00:39]} Bd7 {[%emt 0:02:46]} 31. Bf1 {[%emt 0:07:31]} g5 {[%emt 0:04:31]} 1/2-1/2